bitfinex/quotes_BTCUSD_20260307
["timestamp","ask_amount","ask_price","bid_price","bid_amount"]
[1772914795138,0.08453689,67280.0,67273.0,0.00148]
[1772914795334,0.08453689,67280.0,67274.0,1e-08]
[1772914795750,0.08453689,67280.0,67264.0,0.07453394]
[1772914795959,0.30117441,67275.0,67258.0,0.0002]
[1772914796175,0.06932868,67272.0,67260.0,0.00148]
[1772914796382,0.06932868,67268.0,67260.0,0.00148]
[1772914796603,0.37050309,67268.0,67260.0,0.00148]
[1772914797237,0.07433065,67267.0,67260.0,0.00148]
[1772914797439,0.30117441,67264.0,67251.0,0.07454805]
[1772914797559,0.30117441,67264.0,67256.0,0.00148]
[1772914799182,0.07433507,67263.0,67257.0,0.00148]
[1772914799409,0.06932868,67262.0,67257.0,0.00148]
[1772914799613,0.30117441,67259.0,67247.0,0.07435275]
[1772914799977,0.06959474,67257.0,67248.0,0.00148]
[1772914800746,0.06968398,67257.0,67248.0,0.00148]
[1772914801130,0.14402646,67257.0,67246.0,0.0002]
[1772914801328,0.14402646,67257.0,67249.0,0.00148]
[1772914802721,0.14402646,67257.0,67249.0,0.0004457]
[1772914802894,0.14402646,67257.0,67250.0,0.00148]
[1772914803126,0.14402646,67257.0,67251.0,0.00148]
[1772914804196,0.06959474,67255.0,67251.0,0.00148]
[1772914804311,0.06959474,67253.0,67251.0,0.00148]
[1772914804517,0.345881,67252.0,67251.0,0.00148]
[1772914804739,0.06959474,67252.0,67251.0,0.00148]
[1772914805312,0.06959474,67252.0,67250.0,0.00148]
[1772914805719,0.27628626,67256.0,67251.0,0.0002]
[1772914805720,0.06959474,67256.0,67251.0,0.0002]
[1772914806212,0.07443127,67257.0,67251.0,0.0002]
[1772914806573,0.07443127,67257.0,67244.0,0.0002]
[1772914806799,0.06959474,67254.0,67245.0,0.00148]
[1772914808476,0.07434612,67253.0,67244.0,0.0002]
[1772914808796,0.07434612,67253.0,67246.0,0.00148]
[1772914810777,0.13997911,67254.0,67246.0,0.00148]
[1772914811114,0.13997911,67254.0,67244.0,0.07455585]
[1772914811267,0.13997911,67254.0,67247.0,0.00148]
[1772914811701,0.27628626,67251.0,67248.0,0.00148]
[1772914811901,0.06563299,67250.0,67248.0,0.00148]
[1772914812307,0.27628626,67250.0,67241.0,0.00575]
[1772914812515,0.06563299,67247.0,67240.0,0.00148]
[1772914812714,0.27628626,67244.0,67240.0,0.00148]
[1772914812933,0.06563299,67241.0,67240.0,0.00148]
[1772914813881,0.07435718,67243.0,67240.0,0.00148]
[1772914814220,0.13999017,67243.0,67240.0,0.00148]
[1772914815132,0.27628626,67242.0,67230.0,0.0002]
[1772914815350,0.06563299,67239.0,67231.0,0.00148]
[1772914815573,0.34191925,67237.0,67230.0,0.00148]
[1772914815772,0.06563299,67234.0,67229.0,0.00148]
[1772914815947,0.27628626,67233.0,67230.0,0.00148]
[1772914816152,0.06563299,67232.0,67230.0,0.00148]
[1772914816350,0.06563299,67231.0,67226.0,0.0001217]
[1772914816556,0.06563299,67231.0,67225.0,1e-08]
[1772914816754,0.06563299,67229.0,67219.0,0.0001217]
[1772914817000,0.27628626,67228.0,67219.0,0.00052207]
[1772914817209,0.06563299,67227.0,67219.0,0.00052207]
[1772914817480,0.07437598,67226.0,67219.0,0.00052207]
[1772914817882,0.07437598,67226.0,67219.0,0.00063547]
[1772914818241,0.13985897,67226.0,67219.0,0.00063547]
[1772914818661,0.06563299,67225.0,67215.0,0.07438815]
[1772914818962,0.06603304,67225.0,67216.0,0.00148]
[1772914819383,0.06603304,67225.0,67217.0,0.07438594]
[1772914819588,0.00040005,67225.0,67217.0,0.07438594]
[1772914820489,0.07477721,67225.0,67217.0,0.07438594]
[1772914822010,0.07477721,67225.0,67218.0,0.00148]
[1772914825864,0.07477721,67225.0,67219.0,0.00148]
[1772914829141,0.00040005,67225.0,67219.0,0.07586335]
[1772914829340,0.07477735,67225.0,67219.0,0.07586335]
[1772914829738,0.07477735,67225.0,67219.0,0.00148]
[1772914830170,0.27628626,67224.0,67219.0,0.00148]
[1772914830373,0.07477735,67225.0,67219.0,0.00148]
[1772914832579,0.17477735,67225.0,67219.0,0.00148]
[1772914832806,0.17499736,67225.0,67219.0,0.00148]
[1772914833565,0.28696817,67224.0,67220.0,0.00148]
[1772914833770,0.06563299,67223.0,67220.0,0.00148]
[1772914834759,0.06563299,67223.0,67218.0,0.0002]
[1772914835035,0.06563299,67223.0,67219.0,0.00148]
[1772914835837,0.06563299,67222.0,67219.0,0.00148]
[1772914836049,0.28696817,67221.0,67205.0,0.07439907]
[1772914836204,0.06563299,67219.0,67210.0,0.00148]
[1772914837932,0.07437819,67224.0,67210.0,0.07587343]
[1772914838132,0.07437819,67224.0,67211.0,0.06835923]
[1772914838343,0.06424866,67223.0,67210.0,0.07587343]
[1772914838930,0.06424866,67221.0,67210.0,0.00148]
[1772914839150,0.07437819,67224.0,67200.0,0.07020377]
[1772914839151,0.28696817,67217.0,67200.0,0.07020377]
[1772914839349,0.28696817,67215.0,67199.0,0.07440494]
[1772914839693,0.06393721,67214.0,67200.0,0.00148]
[1772914839837,0.07439037,67213.0,67199.0,0.07440494]
[1772914840182,0.06424866,67212.0,67200.0,0.00148]
[1772914840493,0.06424866,67212.0,67201.0,0.00148]
[1772914840798,0.06414453,67212.0,67204.0,0.0002]
[1772914840962,0.06414453,67212.0,67205.0,0.00148]
[1772914842138,0.07439258,67211.0,67205.0,0.00148]
[1772914843265,0.06424866,67210.0,67204.0,0.0002]
[1772914843470,0.06424866,67210.0,67198.0,0.0001902]
[1772914843471,0.06424866,67209.0,67203.0,0.00148]
[1772914843644,0.28696817,67208.0,67200.0,0.00148]
[1772914843841,0.06424866,67207.0,67200.0,0.00148]
[1772914844046,0.04427439,67210.0,67193.0,0.00148]
[1772914844047,0.06424866,67205.0,67193.0,0.00148]
[1772914844231,0.06424866,67200.0,67190.0,0.00148]
[1772914844436,0.06424866,67198.0,67190.0,0.00148]
[1772914845408,0.14799146,67209.0,67192.0,0.2849361]
[1772914845562,0.07439479,67210.0,67195.0,0.06608492]
[1772914845735,0.07439479,67210.0,67197.0,0.06608492]
[1772914846164,0.14800229,67215.0,67201.0,0.06608492]
[1772914846165,0.07438926,67214.0,67201.0,0.06608492]
[1772914846376,0.07438926,67214.0,67203.0,0.06608492]
[1772914847587,0.07438926,67214.0,67204.0,0.00148]
[1772914847963,0.06424866,67213.0,67204.0,0.00148]
[1772914848166,0.28696817,67209.0,67195.0,0.0002]
[1772914848497,0.06424866,67204.0,67194.0,0.00148]
[1772914848798,0.04427439,67210.0,67194.0,0.00148]
[1772914848799,0.06409288,67201.0,67194.0,0.00148]
[1772914848972,0.06409288,67201.0,67190.0,0.09453579]
[1772914849176,0.06409288,67201.0,67191.0,0.00148]
[1772914849836,0.06393709,67201.0,67191.0,0.00148]
[1772914850036,0.28696817,67201.0,67191.0,0.00148]
[1772914850258,0.06424866,67198.0,67191.0,0.00148]
[1772914850458,0.06409286,67198.0,67191.0,0.07589455]
[1772914850663,0.07440586,67199.0,67191.0,0.07589455]
[1772914851720,0.06424866,67198.0,67191.0,0.00148]
[1772914852146,0.06424866,67198.0,67191.0,0.07589462]
[1772914852683,0.07440808,67197.0,67191.0,0.00148]
[1772914852967,0.06424866,67196.0,67191.0,0.00148]
[1772914853545,0.06424866,67196.0,67191.0,0.07589461]
[1772914853949,0.06409286,67196.0,67191.0,0.07589461]
[1772914854923,0.13850297,67196.0,67191.0,0.00168]
[1772914855750,0.07440802,67199.0,67191.0,0.07609446]
[1772914856976,1e-08,67198.0,67191.0,0.07609446]
[1772914857596,1e-08,67198.0,67192.0,0.00148]
[1772914858779,0.0743972,67207.0,67194.0,0.06595786]
[1772914858981,0.07439589,67210.0,67196.0,0.06595786]
[1772914859184,0.07439258,67211.0,67200.0,0.06595786]
[1772914859443,0.07439258,67211.0,67201.0,0.00148]
[1772914859624,0.13864013,67214.0,67201.0,0.07588345]
[1772914859787,0.06424866,67213.0,67201.0,0.07588345]
[1772914861742,0.07439147,67212.0,67201.0,0.07588345]
[1772914863182,0.14142831,67212.0,67201.0,0.07588345]
[1772914864046,0.07439147,67212.0,67201.0,0.07588345]
[1772914865074,0.14142831,67212.0,67201.0,0.07588345]
[1772914865656,0.07439147,67212.0,67201.0,0.07588345]
[1772914865867,0.07461073,67213.0,67202.0,0.06546338]
[1772914866068,0.07461073,67213.0,67203.0,0.04482795]
[1772914866243,0.06703684,67212.0,67201.0,0.07588345]
[1772914867045,0.07461073,67213.0,67202.0,0.26680559]
[1772914867258,0.07461073,67213.0,67204.0,0.26680559]
[1772914869488,0.07461073,67213.0,67203.0,0.12230669]
[1772914870100,0.06683802,67212.0,67203.0,0.07440045]
[1772914870348,0.07439258,67211.0,67201.0,0.07588345]
[1772914876815,0.07439258,67212.0,67201.0,0.07588345]
[1772914877122,0.07439258,67211.0,67203.0,0.04757086]
[1772914877417,0.07439258,67211.0,67207.0,0.00015]
[1772914877716,0.07439258,67211.0,67208.0,0.00148]
[1772914879434,0.07461107,67213.0,67208.0,0.00148]
[1772914879786,0.00022001,67213.0,67208.0,0.00148]
[1772914879989,0.00022001,67213.0,67208.0,0.07587539]
[1772914880403,0.00022001,67213.0,67208.0,0.00148]
[1772914880610,0.07461101,67213.0,67208.0,0.00148]
[1772914880809,0.07461101,67213.0,67208.0,0.07587542]
[1772914881212,0.00022001,67213.0,67208.0,0.07587542]
[1772914881619,0.07460265,67220.0,67210.0,0.26680559]
[1772914881818,0.00022001,67223.0,67210.0,0.26680559]
[1772914881819,0.07438253,67222.0,67211.0,0.04767002]
[1772914882826,0.07438253,67222.0,67212.0,0.07439147]
[1772914883038,0.07438253,67222.0,67212.0,0.07451162]
[1772914885054,0.07438253,67222.0,67212.0,0.00012015]
[1772914885260,0.07459939,67223.0,67213.0,0.04725619]
[1772914885514,0.07459939,67223.0,67214.0,0.00148]
[1772914885665,0.07459939,67223.0,67214.0,0.04873619]
[1772914886678,0.07459939,67223.0,67214.0,0.00148]
[1772914886929,0.06683802,67220.0,67215.0,0.00148]
[1772914887172,0.06683802,67218.0,67215.0,0.00148]
[1772914888181,0.06683802,67218.0,67215.0,0.07586781]
[1772914888827,0.07459974,67223.0,67215.0,0.07586781]
[1772914889033,0.00062001,67225.0,67215.0,0.12272353]
[1772914889230,0.0743748,67229.0,67215.0,0.12272353]
[1772914889484,0.07437377,67228.0,67215.0,0.12272353]
[1772914890678,0.07437377,67228.0,67215.0,0.07586781]
[1772914890981,0.00022001,67225.0,67215.0,0.07586781]
[1772914891482,0.00046401,67230.0,67217.0,0.04678079]
[1772914891686,0.00046401,67230.0,67221.0,0.04678079]
[1772914891865,0.07483573,67230.0,67223.0,0.0743793]
[1772914893176,0.00022001,67232.0,67223.0,0.0743793]
[1772914893377,0.07436601,67236.0,67225.0,0.04658515]
[1772914894166,0.07436601,67236.0,67226.0,0.07437598]
[1772914895782,0.07436601,67236.0,67225.0,0.12096113]
[1772914895783,0.07436601,67236.0,67225.0,0.07437598]
[1772914895948,0.14120403,67236.0,67225.0,0.07437598]
[1772914896152,0.07436713,67234.0,67224.0,0.07437755]
[1772914901872,0.07458602,67236.0,67224.0,0.12006821]
[1772914902794,0.26586723,67241.0,67224.0,0.12006821]
[1772914902795,0.00575,67241.0,67227.0,0.26428339]
[1772914902965,0.08010953,67241.0,67230.0,0.04559864]
[1772914904215,0.08010953,67241.0,67231.0,0.07437045]
[1772914905077,0.00142001,67250.0,67232.0,0.26428339]
[1772914905233,0.00142001,67250.0,67236.0,0.26428339]
[1772914905453,0.00142001,67250.0,67239.0,0.04541908]
[1772914906352,0.07576982,67250.0,67238.0,0.07436271]
[1772914906491,0.07617012,67250.0,67238.0,0.07436271]
[1772914908657,0.06568033,67257.0,67239.0,0.26428339]
[1772914908852,0.07456184,67257.0,67242.0,0.0456039]
[1772914909024,0.07456184,67257.0,67244.0,0.0456039]
[1772914909992,0.07456209,67257.0,67244.0,0.0456039]
[1772914911344,0.07456209,67257.0,67245.0,0.07435497]
[1772914912671,0.06546032,67256.0,67245.0,0.07435497]
[1772914912875,0.06546032,67254.0,67240.0,0.07436039]
[1772914913077,0.06546032,67252.0,67241.0,0.00148]
[1772914913453,0.07434833,67251.0,67242.0,0.07583828]
[1772914913905,0.00022001,67257.0,67243.0,0.26428339]
[1772914914103,0.07456182,67257.0,67244.0,0.26428339]
[1772914914303,0.07456182,67257.0,67245.0,0.04516692]
[1772914914502,0.00022001,67257.0,67245.0,0.26428339]
[1772914914648,0.07434117,67258.0,67248.0,0.04516692]
[1772914914851,0.07434117,67258.0,67249.0,0.00148]
[1772914915502,0.07433507,67263.0,67250.0,0.07434944]
[1772914915706,0.06546032,67262.0,67250.0,0.07434944]
[1772914918118,0.00015,67257.0,67250.0,0.07434944]
[1772914923648,0.0743383,67261.0,67250.0,0.07434944]
[1772914924385,0.13813534,67261.0,67250.0,0.07434944]
[1772914925547,0.06379704,67260.0,67250.0,0.07434944]
[1772914925927,0.06379704,67256.0,67247.0,0.00148]
[1772914926103,0.06379704,67254.0,67247.0,0.00148]
[1772914926669,0.06379704,67253.0,67247.0,0.00148]
[1772914927800,0.13814427,67252.0,67247.0,0.00148]
[1772914928405,0.13814427,67252.0,67250.0,0.0002]
[1772914928866,0.06299399,67255.0,67247.0,0.00148]
[1772914930062,0.01299399,67255.0,67247.0,0.00148]
[1772914930776,0.01299399,67255.0,67224.0,0.07472709]
[1772914930777,0.2545495,67251.0,67224.0,0.07472709]
[1772914931001,0.2545495,67247.0,67231.0,0.00148]
[1772914931193,0.06299399,67244.0,67231.0,0.00148]
[1772914931370,0.04428255,67250.0,67231.0,0.00148]
[1772914931371,0.31754349,67242.0,67231.0,0.00148]
[1772914931728,0.06299399,67240.0,67232.0,0.00148]
[1772914932220,0.06299399,67240.0,67233.0,0.00148]
[1772914932434,0.06299399,67240.0,67225.0,0.0004]
[1772914932634,0.06299399,67236.0,67223.0,0.00148]
[1772914932811,0.32891774,67233.0,67223.0,0.00148]
[1772914933019,0.07436824,67233.0,67223.0,0.00148]
[1772914933215,0.13736223,67233.0,67223.0,0.00148]
[1772914933513,0.06299399,67232.0,67223.0,0.00148]
[1772914935145,0.07437045,67231.0,67223.0,0.00148]
[1772914935317,0.13736444,67231.0,67223.0,0.00148]
[1772914935939,0.13736444,67231.0,67224.0,0.00148]
[1772914936340,0.13736444,67231.0,67220.0,0.07438247]
[1772914936575,0.13736444,67231.0,67221.0,0.00148]
[1772914936931,0.13736444,67231.0,67222.0,0.00148]
[1772914937903,0.13736444,67231.0,67224.0,0.0002]
[1772914942733,0.06299399,67230.0,67224.0,0.0002]
[1772914943696,0.2545495,67227.0,67225.0,0.00148]
[1772914944014,0.06299399,67226.0,67219.0,0.0002]
[1772914944218,0.06299399,67225.0,67220.0,0.00148]
[1772914944583,0.2545495,67225.0,67216.0,0.07438656]
[1772914944780,0.06299399,67224.0,67218.0,0.00148]
[1772914945208,0.06299399,67224.0,67219.0,0.00148]
[1772914945617,0.0743793,67223.0,67215.0,0.07438815]
[1772914945795,0.0743793,67223.0,67218.0,0.00148]
[1772914946209,0.0743793,67223.0,67219.0,0.00148]
[1772914946463,0.07437822,67224.0,67219.0,0.00148]
[1772914946641,0.07437822,67224.0,67215.0,0.07438815]
[1772914946952,0.07437822,67224.0,67218.0,0.00148]
[1772914947740,0.0743793,67225.0,67219.0,0.00148]
[1772914947934,0.06299399,67224.0,67220.0,0.00148]
[1772914948373,0.0743793,67225.0,67220.0,0.00148]
[1772914948800,0.0743793,67225.0,67221.0,0.00148]
[1772914949150,0.07437598,67226.0,67221.0,0.00148]
[1772914950167,0.07436713,67234.0,67221.0,0.00148]
[1772914950422,0.07436659,67235.0,67223.0,0.24419906]
[1772914950606,0.07436659,67235.0,67224.0,0.06717377]
[1772914951477,0.00022001,67231.0,67224.0,0.06717377]
[1772914952455,0.00022001,67231.0,67225.0,0.07437709]
[1772914953109,0.0745837,67238.0,67226.0,0.06717377]
[1772914953258,0.0745837,67238.0,67230.0,0.06717377]
[1772914953259,0.00022001,67238.0,67230.0,0.06717377]
[1772914953453,0.07436087,67240.0,67230.0,0.06717377]
[1772914954690,0.07435607,67244.0,67231.0,0.07437045]
[1772914956184,0.06299399,67241.0,67232.0,0.00148]
[1772914956441,0.07435607,67244.0,67228.0,0.07437325]
[1772914956442,0.06299399,67239.0,67233.0,0.00148]
[1772914956637,0.24485285,67236.0,67233.0,0.00148]
[1772914956943,0.13736112,67234.0,67228.0,0.07437325]
[1772914957142,0.07436713,67234.0,67229.0,0.00148]
[1772914957300,0.06299399,67233.0,67229.0,0.00148]
[1772914957631,0.06299399,67233.0,67228.0,0.07437325]
[1772914957786,0.06299399,67231.0,67221.0,0.07450088]
[1772914958186,0.06299399,67231.0,67222.0,0.00148]
[1772914958480,0.06299399,67231.0,67221.0,0.07450088]
[1772914958690,0.06299399,67231.0,67222.0,0.00148]
[1772914958896,0.06299399,67231.0,67221.0,0.07450088]
[1772914959097,0.06299399,67231.0,67222.0,0.00148]
[1772914959539,0.06299399,67231.0,67221.0,0.07450088]
[1772914959747,0.06299399,67231.0,67222.0,0.00148]
[1772914960197,0.07437156,67230.0,67223.0,0.00148]
[1772914960691,0.07437156,67230.0,67221.0,0.00012015]
[1772914960869,0.07437156,67230.0,67222.0,0.00148]
[1772914961270,0.07437156,67230.0,67223.0,0.00148]
[1772914961478,0.07437156,67230.0,67216.0,0.07438705]
[1772914961677,0.30830065,67229.0,67219.0,0.00148]
[1772914961875,0.24485285,67228.0,67219.0,0.00148]
[1772914962075,0.0634478,67227.0,67219.0,0.00148]
[1772914962258,0.13782378,67226.0,67220.0,0.00148]
[1772914962712,0.07437598,67226.0,67221.0,0.00148]
[1772914962918,0.0634478,67225.0,67221.0,0.00148]
[1772914963174,0.0634478,67225.0,67219.0,0.07438373]
[1772914963457,0.0634478,67225.0,67222.0,0.00148]
[1772914963679,0.0634478,67225.0,67219.0,0.07438373]
[1772914963805,0.0634478,67225.0,67223.0,0.00148]
[1772914964208,0.0634478,67224.0,67210.0,0.07481568]
[1772914964403,0.0634478,67222.0,67213.0,0.00148]
[1772914967136,0.07438151,67221.0,67213.0,0.07596277]
[1772914967517,0.07423151,67221.0,67213.0,0.07596277]
[1772914968025,0.07423151,67221.0,67214.0,0.00148]
[1772914968026,0.0634478,67219.0,67214.0,0.00148]
[1772914968219,0.07423151,67221.0,67211.0,0.0002]
[1772914968220,0.0634478,67216.0,67211.0,0.0002]
[1772914968468,0.0634478,67216.0,67212.0,0.00148]
[1772914968892,0.0634478,67216.0,67211.0,0.0002]
[1772914969099,0.0634478,67216.0,67212.0,0.00148]
[1772914969395,0.0634478,67214.0,67213.0,0.00148]
[1772914969743,0.0634478,67214.0,67211.0,0.0002]
[1772914969964,0.0634478,67214.0,67212.0,0.00148]
[1772914970205,0.0634478,67214.0,67211.0,0.0002]
[1772914970407,0.0634478,67214.0,67212.0,0.00148]
[1772914970722,0.0634478,67214.0,67211.0,0.00148]
[1772914970910,0.0634478,67211.0,67210.0,0.00148]
[1772914971137,0.0634478,67211.0,67208.0,0.00148]
[1772914971363,0.0634478,67209.0,67195.0,0.05104006]
[1772914971567,0.07439369,67211.0,67197.0,0.01396451]
[1772914971804,0.07439369,67211.0,67199.0,0.01396451]
[1772914972680,0.07439369,67211.0,67200.0,0.24481678]
[1772914973202,0.07439147,67212.0,67201.0,0.07440365]
[1772914973398,0.07439147,67212.0,67202.0,0.00148]
[1772914973818,0.0634478,67223.0,67204.0,0.24481678]
[1772914974034,0.0634478,67222.0,67205.0,0.25882808]
[1772914975076,0.0634478,67222.0,67205.0,0.24481678]
[1772914975855,0.07438151,67221.0,67204.0,0.07440019]
[1772914976063,0.24485285,67217.0,67205.0,0.07587912]
[1772914976318,0.06960782,67216.0,67205.0,0.07587912]
[1772914976469,0.06960782,67216.0,67205.0,0.07439912]
[1772914976790,0.06960782,67216.0,67206.0,0.00148]
[1772914976993,0.06960782,67216.0,67205.0,0.07439912]
[1772914977196,0.06960782,67216.0,67207.0,0.00148]
[1772914979337,0.07438815,67215.0,67207.0,0.07607598]
[1772914980808,0.14398238,67215.0,67207.0,0.07607598]
[1772914981026,0.14398238,67215.0,67207.0,0.07459598]
[1772914981226,0.14398238,67215.0,67208.0,0.00148]
[1772914981675,0.14398238,67215.0,67209.0,0.00148]
[1772914982193,0.06959423,67214.0,67210.0,0.00148]
[1772914983414,0.07438394,67219.0,67210.0,0.07587336]
[1772914984343,0.07438394,67219.0,67210.0,0.00148]
[1772914984551,0.06961005,67218.0,67210.0,0.00148]
[1772914984754,0.06961005,67218.0,67210.0,0.02148]
[1772914985154,0.06961005,67218.0,67210.0,0.09587304]
[1772914985357,0.07438594,67217.0,67210.0,0.09587304]
[1772914987765,0.07438594,67217.0,67210.0,0.09607304]
[1772914990031,0.00062001,67225.0,67210.0,0.09607304]
[1772914990232,0.11189907,67244.0,67211.0,0.2144198]
[1772914990233,0.14417733,67230.0,67211.0,0.2144198]
[1772914990462,0.14425469,67230.0,67211.0,0.2144198]
[1772914991082,0.14425469,67230.0,67213.0,0.2144198]
[1772914993655,0.06988266,67230.0,67214.0,0.07438926]
[1772914993856,0.07466944,67230.0,67215.0,0.2144198]
[1772914994068,0.07466944,67230.0,67217.0,0.2144198]
[1772914994882,0.06943049,67229.0,67216.0,0.00148]
[1772914995087,0.07466944,67230.0,67216.0,0.00148]
[1772914995410,0.07466944,67230.0,67216.0,0.2158998]
[1772914995786,0.07436269,67239.0,67219.0,0.2144198]
[1772914995987,0.07436106,67240.0,67219.0,0.21454003]
[1772914997130,0.07436106,67240.0,67220.0,0.2144198]
[1772914997534,0.07456847,67251.0,67220.0,0.2144198]
[1772914997708,0.07554976,67250.0,67221.0,0.07438151]
[1772914997889,0.07554976,67250.0,67222.0,0.2158998]
[1772914998080,0.0012,67250.0,67222.0,0.2158998]
[1772914998523,0.07434636,67253.0,67226.0,0.2144198]
[1772914998685,0.0001196,67251.0,67226.0,0.2144198]
[1772914999689,0.0001196,67251.0,67226.0,0.2154198]
[1772914999950,0.0001196,67251.0,67228.0,0.2144198]
[1772915000240,0.0001196,67251.0,67230.0,0.2144198]
[1772915001845,0.0001196,67251.0,67231.0,0.07437045]
[1772915002020,0.0001196,67251.0,67232.0,0.2144198]
[1772915003243,0.0001196,67251.0,67232.0,0.2154198]
[1772915004050,0.0001196,67251.0,67234.0,0.2144198]
[1772915004323,0.00033961,67251.0,67236.0,0.2144198]
[1772915006163,0.00033961,67251.0,67237.0,0.28878361]
[1772915011314,0.00033961,67251.0,67237.0,0.07436381]
[1772915011514,0.00033961,67251.0,67237.0,0.28878361]
[1772915017927,0.00033961,67251.0,67238.0,0.19484202]
[1772915018774,0.00033961,67251.0,67237.0,0.07436381]
[1772915019002,0.0746881,67251.0,67237.0,0.07436381]
[1772915019415,0.20749276,67249.0,67237.0,0.07436381]
[1772915019584,0.06775894,67248.0,67237.0,0.07436381]
[1772915019783,0.06787854,67248.0,67237.0,0.07436381]
[1772915019992,0.0001196,67248.0,67237.0,0.07436381]
[1772915022923,0.0001196,67248.0,67237.0,0.03385252]
[1772915024298,0.0001196,67248.0,67237.0,0.03405252]
[1772915025377,0.06693488,67248.0,67237.0,0.03405252]
[1772915025970,0.06681528,67244.0,67238.0,0.00148]
[1772915026169,0.0001196,67248.0,67235.0,0.07436381]
[1772915026170,0.06681528,67243.0,67235.0,0.07436381]
[1772915026324,0.06681528,67243.0,67239.0,0.00148]
[1772915026529,0.06681528,67243.0,67240.0,0.07436049]
[1772915026722,0.06681528,67243.0,67241.0,0.00148]
[1772915026945,0.06693488,67243.0,67240.0,0.06991434]
[1772915027146,0.06693488,67243.0,67241.0,0.00148]
[1772915027587,0.06693488,67243.0,67240.0,0.06991434]
[1772915027779,0.06681528,67240.0,67230.0,0.07457086]
[1772915027933,0.06681528,67240.0,67231.0,0.00148]
[1772915028939,0.06693488,67240.0,67232.0,0.07436934]
[1772915029179,0.14129574,67240.0,67232.0,0.07436934]
[1772915029601,0.06681528,67239.0,67232.0,0.07436934]
[1772915029806,0.07448046,67240.0,67232.0,0.07436934]
[1772915030110,0.0001196,67239.0,67232.0,0.07436934]
[1772915032452,0.06681528,67254.0,67232.0,0.07436934]
[1772915032619,0.07456911,67251.0,67232.0,0.07436934]
[1772915033000,0.07456911,67251.0,67232.0,0.1371168]
[1772915033197,0.06681528,67249.0,67232.0,0.1371168]
[1772915033623,0.06681528,67249.0,67232.0,0.1381168]
[1772915034029,0.06681528,67249.0,67232.0,0.1371168]
[1772915034239,0.06681528,67249.0,67233.0,0.00148]
[1772915034614,0.06681528,67248.0,67234.0,0.00148]
[1772915035005,0.06681528,67248.0,67232.0,0.1371168]
[1772915035204,0.06681528,67248.0,67233.0,0.00148]
[1772915035630,0.06681528,67248.0,67234.0,0.00148]
[1772915036100,0.06681528,67248.0,67235.0,0.00148]
[1772915036552,0.06681528,67248.0,67232.0,0.1371168]
[1772915036736,0.06681528,67248.0,67233.0,0.00148]
[1772915037055,0.06681528,67248.0,67232.0,0.07436934]
[1772915037212,0.06681528,67247.0,67233.0,0.00148]
[1772915037412,0.06681528,67247.0,67234.0,0.00148]
[1772915037911,0.06681528,67247.0,67232.0,0.07436934]
[1772915038086,0.06681528,67247.0,67235.0,0.00148]
[1772915038293,0.06681528,67247.0,67232.0,0.07436934]
[1772915038501,0.06681528,67247.0,67233.0,0.00148]
[1772915038655,0.06681528,67247.0,67234.0,0.07436713]
[1772915039056,0.14116811,67247.0,67235.0,0.00148]
[1772915039365,0.14116811,67247.0,67234.0,0.07436713]
[1772915039565,0.14116811,67247.0,67235.0,0.00148]
[1772915039898,0.14116811,67247.0,67234.0,0.07436713]
[1772915040101,0.14116811,67247.0,67235.0,0.00148]
[1772915040283,0.06681528,67247.0,67235.0,0.00148]
[1772915040483,0.06681528,67247.0,67234.0,0.07436713]
[1772915040680,0.06681528,67247.0,67235.0,0.00148]
[1772915041132,0.06681528,67247.0,67236.0,0.00148]
[1772915041647,0.06681528,67247.0,67234.0,0.07436713]
[1772915041648,0.06681528,67247.0,67237.0,0.00148]
[1772915041941,0.06591031,67246.0,67237.0,0.00148]
[1772915042524,0.06591031,67246.0,67234.0,0.07436713]
[1772915042677,0.06591031,67246.0,67235.0,0.00148]
[1772915043086,0.06591031,67246.0,67236.0,0.00148]
[1772915043473,0.06591031,67246.0,67233.0,0.07456713]
[1772915043722,0.06591031,67246.0,67234.0,0.00148]
[1772915044068,0.06591031,67246.0,67235.0,0.00148]
[1772915045522,0.06591031,67246.0,67233.0,0.07456713]
[1772915045744,0.06591031,67246.0,67234.0,0.00148]
[1772915046121,0.06591031,67246.0,67235.0,0.00148]
[1772915046534,0.06591031,67246.0,67233.0,0.07456713]
[1772915046838,0.06591031,67246.0,67234.0,0.00148]
[1772915047055,0.06591031,67246.0,67233.0,0.07456713]
[1772915047254,0.06591031,67246.0,67234.0,0.00148]
[1772915047679,0.06591031,67246.0,67235.0,0.00148]
[1772915048083,0.06591031,67246.0,67233.0,0.07456713]
[1772915048325,0.06591031,67246.0,67236.0,0.00148]
[1772915048592,0.06591031,67246.0,67233.0,0.06863969]
[1772915048774,0.06591031,67246.0,67234.0,0.00148]
[1772915049148,0.06591031,67246.0,67235.0,0.00148]
[1772915049556,0.06591031,67246.0,67236.0,0.00148]
[1772915050373,0.06591031,67246.0,67237.0,0.00148]
[1772915050867,0.06591031,67246.0,67233.0,0.06863969]
[1772915051183,0.06591031,67246.0,67238.0,0.00148]
[1772915051593,0.06591031,67246.0,67240.0,0.07436049]
[1772915052920,0.07435203,67248.0,67240.0,0.07436049]
[1772915054856,0.04975014,67247.0,67241.0,0.00148]
[1772915055396,0.04975014,67247.0,67242.0,0.00148]
[1772915055761,0.04975014,67247.0,67243.0,0.00148]
[1772915056174,0.04975014,67247.0,67240.0,0.07436049]
[1772915056399,0.07457204,67248.0,67241.0,0.00148]
[1772915056684,0.07456864,67251.0,67240.0,0.07436049]
[1772915056878,0.07456864,67251.0,67241.0,0.00148]
[1772915060133,0.07456864,67251.0,67242.0,0.07435828]
[1772915062220,0.0515415,67249.0,67237.0,0.0002]
[1772915062419,0.0515415,67245.0,67238.0,0.00148]
[1772915062582,0.0515415,67245.0,67239.0,0.00148]
[1772915062982,0.0515415,67245.0,67240.0,0.00148]
[1772915063311,0.0515415,67245.0,67235.0,0.0743656]
[1772915063619,0.0515415,67245.0,67236.0,0.00148]
[1772915064128,0.0515415,67245.0,67241.0,0.0002]
[1772915064355,0.1257294,67244.0,67241.0,0.0002]
[1772915064622,0.05137333,67243.0,67241.0,0.0002]
[1772915065713,0.07435607,67244.0,67242.0,0.00148]
[1772915066285,0.12554202,67244.0,67242.0,0.00148]
[1772915066519,0.20402534,67242.0,67234.0,0.0002832]
[1772915066722,0.25521129,67242.0,67234.0,0.0002832]
[1772915066902,0.05118595,67242.0,67235.0,0.00148]
[1772915067107,0.05118595,67242.0,67236.0,0.00148]
[1772915067722,0.05118595,67242.0,67237.0,0.00148]
[1772915068234,0.05118595,67242.0,67238.0,0.00148]
[1772915068728,0.07435939,67241.0,67239.0,0.00148]
[1772915068883,0.07435939,67241.0,67234.0,0.0002832]
[1772915069086,0.20402534,67240.0,67222.0,0.06611128]
[1772915069296,0.20402534,67236.0,67224.0,0.07437789]